bitfinex/quotes_BTCUSD_20251025
["timestamp","ask_amount","ask_price","bid_price","bid_amount"]
[1761377021177,24.72885485,111700.0,111690.0,3.45896553]
[1761377021389,24.72885485,111700.0,111690.0,3.46196553]
[1761377021832,24.72885485,111700.0,111690.0,3.77203448]
[1761377022067,24.72885485,111700.0,111690.0,3.82935448]
[1761377024598,24.72885485,111700.0,111690.0,4.03935448]
[1761377024791,24.72952807,111700.0,111690.0,4.43555448]
[1761377026290,24.72952807,111700.0,111690.0,4.43543448]
[1761377029397,24.72952807,111700.0,111690.0,4.45205573]
[1761377032942,24.72952807,111700.0,111690.0,4.05805573]
[1761377033148,24.72952807,111700.0,111690.0,4.43519765]
[1761377033917,24.57982807,111700.0,111690.0,4.28549765]
[1761377038377,24.57982807,111700.0,111690.0,3.89153765]
[1761377038604,24.57982807,111700.0,111690.0,4.28537765]
[1761377039207,24.57982807,111700.0,111690.0,4.27537766]
[1761377040062,24.43012807,111700.0,111690.0,4.17857766]
[1761377042087,24.43012807,111700.0,111690.0,3.16477939]
[1761377042308,24.43012807,111700.0,111690.0,4.16857767]
[1761377043639,24.43012807,111700.0,111690.0,4.16557767]
[1761377043843,24.43012807,111700.0,111690.0,4.16657767]
[1761377045239,24.43012807,111700.0,111690.0,4.10291466]
[1761377046112,24.43012807,111700.0,111690.0,4.11291465]
[1761377046469,24.43012807,111700.0,111690.0,4.16652042]
[1761377047107,24.43012807,111700.0,111690.0,4.19325147]
[1761377047315,24.43012807,111700.0,111690.0,4.20325146]
[1761377047500,24.43012807,111700.0,111690.0,4.19325147]
[1761377047904,24.43012807,111700.0,111690.0,4.19225147]
[1761377048401,24.30925767,111700.0,111690.0,4.16800165]
[1761377048767,24.30925767,111700.0,111690.0,4.71838861]
[1761377049131,24.30925767,111700.0,111690.0,4.74511966]
[1761377049341,23.88007199,111700.0,111690.0,4.74511966]
[1761377049558,23.15534967,111700.0,111690.0,5.34250257]
[1761377049774,23.15534967,111700.0,111690.0,5.3241738]
[1761377049775,21.57843346,111700.0,111690.0,5.3241738]
[1761377049990,21.04207769,111700.0,111690.0,5.3243171]
[1761377050195,21.01521788,111700.0,111690.0,5.5394771]
[1761377050477,20.72721826,111700.0,111690.0,5.5394771]
[1761377050741,20.48247855,111700.0,111690.0,5.45651478]
[1761377050982,20.23723983,111700.0,111690.0,5.46851478]
[1761377051179,19.95213689,111700.0,111690.0,5.46851478]
[1761377051391,19.68608687,111700.0,111690.0,5.46839478]
[1761377051606,19.45350497,111700.0,111690.0,5.46839478]
[1761377051817,19.42664516,111700.0,111690.0,4.5670913]
[1761377052050,19.39978535,111700.0,111690.0,4.39701129]
[1761377052229,19.13492252,111700.0,111690.0,4.63333129]
[1761377052476,18.89338931,111700.0,111690.0,4.79865515]
[1761377052685,18.67541806,111700.0,111690.0,4.92890637]
[1761377052891,18.40016649,111700.0,111690.0,4.30794638]
[1761377053106,18.13318336,111700.0,111690.0,4.92790637]
[1761377053337,18.10632355,111700.0,111690.0,4.91790638]
[1761377053524,17.78488774,111700.0,111690.0,4.93590637]
[1761377053757,17.56837422,111700.0,111690.0,4.93590637]
[1761377053962,17.30084327,111700.0,111690.0,4.93590637]
[1761377054164,17.08222341,111700.0,111690.0,4.92590638]
[1761377054373,17.08222341,111700.0,111690.0,4.93590637]
[1761377054675,16.85359726,111700.0,111690.0,4.92590638]
[1761377054915,16.648122,111700.0,111690.0,4.93590637]
[1761377055131,16.2917269,111700.0,111690.0,5.8884218]
[1761377055347,16.2917269,111700.0,111690.0,5.66182256]
[1761377055348,16.28926123,111700.0,111690.0,5.66182256]
[1761377055569,16.05201496,111700.0,111690.0,5.66182256]
[1761377055784,16.02516237,111700.0,111690.0,5.64182258]
[1761377056003,15.99830978,111700.0,111690.0,5.60488135]
[1761377056222,15.99771378,111700.0,111690.0,5.62488133]
[1761377056434,15.99771378,111700.0,111690.0,5.65282256]
[1761377056653,15.99771378,111700.0,111690.0,4.08407611]
[1761377056840,15.99771378,111700.0,111690.0,4.67626505]
[1761377057095,15.99771378,111700.0,111690.0,4.90882944]
[1761377057309,15.99771378,111700.0,111690.0,4.83251943]
[1761377057943,15.99771378,111700.0,111690.0,4.51790436]
[1761377058157,15.99771378,111700.0,111690.0,4.52590435]
[1761377058612,15.99771378,111700.0,111690.0,4.52690435]
[1761377059493,15.99771378,111700.0,111690.0,3.8912533]
[1761377059714,15.99771378,111700.0,111690.0,4.19551822]
[1761377059946,15.99771378,111700.0,111690.0,4.5001333]
[1761377060582,15.99771378,111700.0,111690.0,4.4921333]
[1761377060979,15.99771378,111700.0,111690.0,4.4981333]
[1761377061244,15.99771378,111700.0,111690.0,4.48713331]
[1761377061473,15.99771378,111700.0,111690.0,4.4981333]
[1761377064065,15.99771378,111700.0,111690.0,3.48198323]
[1761377064272,15.99771378,111700.0,111690.0,3.87598323]
[1761377064478,15.99771378,111700.0,111690.0,4.18059831]
[1761377064685,15.99771378,111700.0,111690.0,4.21678059]
[1761377065096,15.99771378,111700.0,111690.0,4.29556234]
[1761377065522,15.87686353,111700.0,111690.0,4.29656234]
[1761377065958,15.87686353,111700.0,111690.0,4.29640833]
[1761377066167,15.87686353,111700.0,111690.0,4.31713938]
[1761377066594,15.87686353,111700.0,111690.0,4.32113938]
[1761377067886,15.87686353,111700.0,111690.0,4.38920325]
[1761377069609,15.87686353,111700.0,111690.0,3.87155801]
[1761377069845,15.87686353,111700.0,111690.0,4.78540325]
[1761377072652,15.87686353,111700.0,111690.0,4.70577551]
[1761377073099,15.87686353,111700.0,111690.0,4.78547034]
[1761377073404,15.87686353,111700.0,111690.0,4.70577551]
[1761377075043,15.87686353,111700.0,111690.0,4.66904447]
[1761377075212,15.87686353,111700.0,111690.0,4.36442939]
[1761377075453,15.74526784,111700.0,111690.0,4.47778047]
[1761377075871,15.74526784,111700.0,111690.0,4.38605024]
[1761377076946,15.74526784,111700.0,111690.0,4.36605026]
[1761377077151,15.74526784,111700.0,111690.0,3.68944798]
[1761377077373,15.74526784,111700.0,111690.0,4.09336797]
[1761377077614,15.74526784,111700.0,111690.0,4.12955025]
[1761377078049,15.74526784,111700.0,111690.0,4.12855025]
[1761377078260,15.74526784,111700.0,111690.0,4.12455025]
[1761377079723,15.74526784,111700.0,111690.0,4.12755025]
[1761377081290,15.74526784,111700.0,111690.0,4.13755024]
[1761377082978,15.74526784,111700.0,111690.0,4.46889637]
[1761377084088,15.74526784,111700.0,111690.0,4.46689637]
[1761377084416,15.74526784,111700.0,111690.0,4.47289637]
[1761377085475,15.61366915,111700.0,111690.0,4.39313164]
[1761377086095,15.61366915,111700.0,111690.0,4.47299024]
[1761377086530,15.61366915,111700.0,111690.0,4.39313164]
[1761377087398,15.61366915,111700.0,111690.0,4.63963164]
[1761377088670,15.61340056,111700.0,111690.0,4.63963164]
[1761377089314,15.61340056,111700.0,111690.0,4.33501656]
[1761377090509,15.61340056,111700.0,111690.0,3.94109656]
[1761377090814,15.61340056,111700.0,111690.0,4.54989656]
[1761377093050,15.61340056,111700.0,111690.0,4.52316551]
[1761377093659,15.61340056,111700.0,111690.0,4.82778059]
[1761377094224,15.61340056,111700.0,111690.0,4.52316551]
[1761377095545,15.48180382,111700.0,111690.0,4.52316551]
[1761377095758,15.48180382,111700.0,111690.0,4.63651659]
[1761377096174,15.48180382,111700.0,111690.0,4.52316551]
[1761377096402,15.48180382,111700.0,111690.0,4.82778059]
[1761377097602,15.48180382,111700.0,111690.0,4.94113167]
[1761377100201,15.48180382,111700.0,111690.0,4.02771659]
[1761377100410,15.48180382,111700.0,111690.0,4.42159659]
[1761377100624,15.48180382,111700.0,111690.0,3.44676798]
[1761377100838,15.48180382,111700.0,111690.0,3.26432798]
[1761377101055,15.48180382,111700.0,111690.0,3.18438115]
[1761377101269,15.48180382,111700.0,111690.0,3.24833438]
[1761377101478,15.48180382,111700.0,111690.0,3.24233438]
[1761377101696,15.48180382,111700.0,111690.0,3.58233438]
[1761377101926,15.48180382,111700.0,111690.0,3.58633438]
[1761377102146,15.48180382,111700.0,111690.0,3.58133438]
[1761377102361,15.48180382,111700.0,111690.0,3.58433438]
[1761377102574,15.48180382,111700.0,111690.0,3.58533438]
[1761377102795,15.48180382,111700.0,111690.0,3.62151666]
[1761377103011,15.48180382,111700.0,111690.0,3.62051666]
[1761377103440,15.7864189,111700.0,111690.0,0.7821593]
[1761377103653,15.48180382,111700.0,111690.0,0.69669901]
[1761377103863,15.48180382,111700.0,111690.0,1.0846479]
[1761377104097,15.48180382,111700.0,111690.0,1.26371496]
[1761377104954,15.48180382,111700.0,111690.0,1.60451232]
[1761377105165,15.48180382,111700.0,111690.0,1.60151232]
[1761377105398,15.48180382,111700.0,111690.0,1.55356343]
[1761377105608,15.48180382,111700.0,111690.0,1.61751666]
[1761377107683,15.48180382,111700.0,111690.0,1.31290158]
[1761377107942,15.48180382,111700.0,111690.0,1.61751666]
[1761377108720,15.48180382,111700.0,111690.0,1.61761562]
[1761377109288,15.48180382,111700.0,111690.0,1.31290158]
[1761377109446,15.48180382,111700.0,111690.0,1.61761562]
[1761377111268,15.48180382,111700.0,111690.0,1.55366239]
[1761377112167,15.48180382,111700.0,111690.0,1.61761562]
[1761377113411,15.48180382,111700.0,111690.0,1.55366239]
[1761377113631,15.48180382,111700.0,111690.0,3.61761562]
[1761377117178,15.48180382,111700.0,111690.0,3.76731562]
[1761377121256,15.48180382,111700.0,111690.0,3.46260158]
[1761377121471,15.48180382,111700.0,111690.0,3.76731562]
[1761377123801,15.48180382,111700.0,111690.0,3.46260158]
[1761377124043,15.48180382,111700.0,111690.0,2.97627452]
[1761377124309,15.48180382,111700.0,111690.0,1.26070946]
[1761377124555,15.48180382,111700.0,111690.0,1.05070946]
[1761377127253,15.48180382,111700.0,111690.0,0.8716424]
[1761377129086,15.48180382,111700.0,111690.0,0.6926424]
[1761377129714,15.78651786,111700.0,111690.0,0.6926424]
[1761377129912,15.96556888,111700.0,111690.0,0.1950024]
[1761377130111,15.96556888,111700.0,111690.0,0.38460597]
[1761377130835,15.78651786,111700.0,111690.0,0.38460597]
[1761377131437,15.48180382,111700.0,111690.0,0.38460597]
[1761377133877,15.48180382,111700.0,111690.0,0.33670258]
[1761377134089,15.96556888,111700.0,111690.0,0.33670258]
[1761377134307,15.96556888,111700.0,111690.0,0.36069044]
[1761377135325,15.96556888,111700.0,111690.0,0.32868687]
[1761377137603,15.96556888,111700.0,111690.0,0.30469901]
[1761377138013,15.96556888,111700.0,111690.0,0.30869901]
[1761377149047,15.96491188,111700.0,111690.0,0.30869901]
[1761377155471,15.96491188,111700.0,111690.0,0.30865901]
[1761377156143,15.99179961,111700.0,111690.0,0.30865901]
[1761377156372,16.08161862,111700.0,111690.0,0.30865901]
[1761377161177,15.48114682,111700.0,111690.0,0.30865901]
[1761377161390,15.66019784,111700.0,111690.0,0.33267084]
[1761377165316,15.66019784,111700.0,111690.0,0.36467441]
[1761377165954,15.48114682,111700.0,111690.0,0.36467441]
[1761377166831,15.48114682,111700.0,111690.0,0.36067441]
[1761377167032,15.48114682,111700.0,111690.0,0.36267441]
[1761377167473,15.48114682,111700.0,111690.0,0.33866258]
[1761377168218,15.48114682,111700.0,111690.0,0.36269349]
[1761377168677,15.48114682,111700.0,111690.0,0.54176055]
[1761377168885,15.48114682,111700.0,111690.0,0.56563303]
[1761377169105,15.48114682,111700.0,111690.0,0.89723111]
[1761377169319,15.48114682,111700.0,111690.0,0.5605135]
[1761377171255,15.48114682,111700.0,111690.0,0.59252259]
[1761377172274,15.48114682,111700.0,111690.0,0.89732158]
[1761377172495,15.48114682,111700.0,111690.0,0.59252259]
[1761377173975,15.48114682,111700.0,111690.0,0.89732158]
[1761377174641,15.48114682,111700.0,111690.0,0.86531249]
[1761377175316,15.48114682,111700.0,111690.0,0.59250249]
[1761377176805,15.48114682,111700.0,111690.0,0.89730148]
[1761377178507,15.48114682,111700.0,111690.0,0.59250249]
[1761377178813,15.48114682,111700.0,111690.0,0.89730148]
[1761377180407,15.48114682,111700.0,111690.0,0.59250249]
[1761377180633,15.78594581,111700.0,111690.0,0.19859543]
[1761377180855,15.78594581,111700.0,111690.0,0.41339543]
[1761377181072,15.78594581,111700.0,111690.0,0.38948404]
[1761377181512,15.48114682,111700.0,111690.0,0.38948404]
[1761377181725,15.78594581,111700.0,111690.0,0.38948404]
[1761377181936,15.78594581,111700.0,111690.0,0.17468404]
[1761377182123,16.14895912,111700.0,111690.0,0.38948404]
[1761377182368,15.84416013,111700.0,111690.0,0.38948404]
[1761377182563,15.78594581,111700.0,111690.0,0.38948404]
[1761377184479,15.96499683,111700.0,111690.0,0.38948404]
[1761377184690,15.96499683,111700.0,111690.0,0.35749505]
[1761377186013,15.96499683,111700.0,111690.0,0.33061101]
[1761377187193,16.35961483,111700.0,111690.0,0.1478]
[1761377187393,16.35961483,111700.0,111690.0,0.33061101]
[1761377187620,16.26979582,111700.0,111690.0,0.33061101]
[1761377188434,16.26979582,111700.0,111690.0,0.32861101]
[1761377188843,16.26979582,111700.0,111690.0,0.33361101]
[1761377190464,16.26979582,111700.0,111690.0,0.06228]
[1761377190465,16.57459481,111700.0,111690.0,0.06228]
[1761377190672,16.26979582,111700.0,111690.0,0.2198]
[1761377190889,17.00441382,111700.0,111690.0,0.16252]
[1761377191555,17.00441382,111700.0,111690.0,0.15752]
[1761377191768,0.17908309,111680.0,111660.0,0.11326099]
[1761377191988,0.48388208,111680.0,111670.0,0.24733901]
[1761377193306,0.78868107,111680.0,111670.0,0.24733901]
[1761377194501,0.78868107,111680.0,111670.0,0.25233901]
[1761377194697,0.17908309,111680.0,111670.0,0.25233901]
[1761377194882,0.78868107,111680.0,111670.0,0.25233901]
[1761377196709,0.80173775,111680.0,111670.0,0.25233901]
[1761377197393,0.78868107,111680.0,111670.0,0.25233901]
[1761377197606,0.48388208,111680.0,111670.0,0.25233901]
[1761377197817,0.30479899,111680.0,111670.0,0.25233901]
[1761377198030,0.00033662,111690.0,111670.0,0.73623504]
[1761377198241,0.00033662,111690.0,111670.0,0.76022704]
[1761377198673,0.00033662,111690.0,111670.0,0.79221603]
[1761377198884,0.00033662,111690.0,111680.0,0.02688724]
[1761377199095,0.00033662,111690.0,111680.0,0.11670625]
[1761377199319,0.00033662,111690.0,111680.0,0.29578934]
[1761377199500,0.00033662,111690.0,111680.0,0.62458033]
[1761377199758,0.00033662,111690.0,111680.0,0.96136831]
[1761377199977,0.00033662,111690.0,111680.0,0.65656932]
[1761377200437,0.00033662,111690.0,111680.0,0.63257732]
[1761377200680,0.00133662,111690.0,111680.0,0.63257732]
[1761377202294,0.00133662,111690.0,111680.0,0.97257732]
[1761377202507,0.00133662,111690.0,111680.0,1.02048071]
[1761377203781,0.00133662,111690.0,111680.0,0.71568172]
[1761377204042,0.00133662,111690.0,111680.0,1.02048071]
[1761377205477,0.00133662,111690.0,111680.0,0.71568172]
[1761377205939,0.00133662,111690.0,111680.0,1.02048071]
[1761377207513,0.00133662,111690.0,111680.0,0.71568172]
[1761377207718,0.00133662,111690.0,111680.0,0.88261833]
[1761377207933,0.00133662,111690.0,111680.0,0.90657915]
[1761377208378,0.00133662,111690.0,111680.0,0.88261833]
[1761377219721,0.00133662,111690.0,111680.0,0.66777833]
[1761377219925,0.00133662,111690.0,111680.0,0.88261833]
[1761377220160,0.30613561,111690.0,111680.0,0.88261833]
[1761377220596,0.00133662,111690.0,111680.0,0.88261833]
[1761377221232,0.00133662,111690.0,111680.0,1.11658197]
[1761377222177,0.00133662,111690.0,111680.0,1.09261833]
[1761377223212,0.00133662,111690.0,111680.0,1.14052172]
[1761377223981,0.00133662,111690.0,111680.0,1.44532071]
[1761377226181,0.00133662,111690.0,111680.0,1.41333172]
[1761377226516,0.00133662,111690.0,111680.0,1.38644448]
[1761377229129,0.00133662,111690.0,111680.0,1.33854109]
[1761377229339,0.00133662,111690.0,111680.0,1.0818122]
[1761377235283,0.00133662,111690.0,111680.0,1.0337421]
[1761377257206,0.00133662,111690.0,111680.0,1.40256739]
[1761377275369,0.00133662,111690.0,111680.0,3.74362173]
[1761377275586,0.00133662,111690.0,111680.0,3.78056296]
[1761377275800,0.00133662,111690.0,111680.0,3.80744358]
[1761377276013,0.00033662,111690.0,111680.0,3.77050235]
[1761377276224,0.00033662,111690.0,111680.0,3.46563029]
[1761377277225,0.00033662,111690.0,111680.0,3.77050235]
[1761377277722,0.00033662,111690.0,111680.0,3.70654912]
[1761377277928,0.00033662,111690.0,111680.0,3.40167706]
[1761377278127,0.00033662,111690.0,111680.0,3.48162389]
[1761377278558,0.00033662,111690.0,111680.0,3.78649595]
[1761377278830,0.00033662,111690.0,111680.0,3.48162389]
[1761377279259,15.4804736,111700.0,111690.0,2.51906706]
[1761377279494,15.4804736,111700.0,111690.0,3.43236309]
[1761377279701,15.4804736,111700.0,111690.0,3.44827702]
[1761377279939,15.48081019,111700.0,111690.0,3.44827702]
[1761377280335,15.48081019,111700.0,111690.0,3.47515273]
[1761377280544,15.48081019,111700.0,111690.0,3.32545273]
[1761377285738,15.48081019,111700.0,111690.0,3.47515273]
[1761377286143,15.48081019,111700.0,111690.0,3.86895273]
[1761377289359,15.48081019,111700.0,111690.0,3.7890059]
[1761377291276,15.48081019,111700.0,111690.0,3.13425612]
[1761377291481,15.48081019,111700.0,111690.0,3.43448728]
[1761377292086,15.48081019,111700.0,111690.0,3.12961522]
[1761377292234,15.48081019,111700.0,111690.0,3.43448728]
[1761377292766,15.48081019,111700.0,111690.0,3.43433233]
[1761377293511,15.48081019,111700.0,111690.0,1.12961522]
[1761377293721,15.48081019,111700.0,111690.0,1.43433233]
[1761377300574,15.48081019,111700.0,111690.0,1.37042117]
[1761377301387,15.48081019,111700.0,111690.0,1.67513828]
[1761377302506,15.48081019,111700.0,111690.0,3.67513828]
[1761377302913,15.48081019,111700.0,111690.0,3.06570406]
[1761377303129,15.48081019,111700.0,111690.0,3.37042117]
[1761377303340,15.48081019,111700.0,111690.0,3.450368]
[1761377307297,15.48081019,111700.0,111690.0,3.14565089]
[1761377307501,15.48081019,111700.0,111690.0,3.450368]
[1761377308617,15.48081019,111700.0,111690.0,3.14565089]
[1761377309052,15.48081019,111700.0,111690.0,3.450368]
[1761377310191,15.48081019,111700.0,111690.0,3.600068]
[1761377310352,15.48081019,111700.0,111690.0,3.29535089]
[1761377310544,15.48081019,111700.0,111690.0,3.600068]
[1761377313447,15.48081019,111700.0,111690.0,3.29535089]
[1761377313666,15.48081019,111700.0,111690.0,3.600068]
[1761377315416,15.48081019,111700.0,111690.0,3.600028]
[1761377315619,15.48081019,111700.0,111690.0,1.600028]
[1761377317067,15.48081019,111700.0,111690.0,1.29531089]
[1761377317205,15.48081019,111700.0,111690.0,1.600028]
[1761377317610,15.48081019,111700.0,111690.0,0.90159089]
[1761377317807,15.48081019,111700.0,111690.0,1.600028]
[1761377318019,15.48081019,111700.0,111690.0,1.52008117]
[1761377318235,15.48081019,111700.0,111690.0,1.600028]
[1761377320794,15.48081019,111700.0,111690.0,1.52008117]
[1761377322091,15.48081019,111700.0,111690.0,0.79316178]
[1761377322225,15.48081019,111700.0,111690.0,1.09357706]
[1761377323821,15.48081019,111700.0,111690.0,1.39829417]
[1761377324146,15.48081019,111700.0,111690.0,1.09357706]
[1761377326590,15.48081019,111700.0,111690.0,1.39829417]
[1761377329559,15.48081019,111700.0,111690.0,1.09357706]
[1761377331811,15.48081019,111700.0,111690.0,1.39829417]
[1761377332020,15.48081019,111700.0,111690.0,1.09357706]
[1761377335938,15.7855273,111700.0,111690.0,1.06670135]
[1761377336159,15.48081019,111700.0,111690.0,1.06670135]
[1761377336359,15.7855273,111700.0,111690.0,1.06670135]
[1761377336572,15.48081019,111700.0,111690.0,1.06670135]
[1761377336983,15.7855273,111700.0,111690.0,1.06670135]
[1761377337220,16.09024441,111700.0,111690.0,0.67298135]
[1761377337429,16.09024441,111700.0,111690.0,0.53513499]
[1761377337430,16.26929543,111700.0,111690.0,0.53513499]
[1761377337633,16.26929543,111700.0,111690.0,0.69253499]
[1761377338654,16.66383155,111700.0,111690.0,0.13785499]
[1761377338882,16.66383155,111700.0,111690.0,0.32852455]
[1761377339295,16.35911444,111700.0,111690.0,0.32852455]
[1761377339430,16.35911444,111700.0,111690.0,0.30449901]
[1761377339638,16.35911444,111700.0,111690.0,0.30949901]
[1761377340073,16.35911444,111700.0,111690.0,0.30549901]
[1761377340279,16.35911444,111700.0,111690.0,0.30449901]
[1761377341237,16.35911444,111700.0,111690.0,0.30849901]
[1761377341715,16.26929543,111700.0,111690.0,0.30849901]
[1761377343158,16.26929543,111700.0,111680.0,0.23473847]
[1761377343159,16.75810155,111700.0,111680.0,0.23473847]
[1761377343370,2.18909912,111670.0,111660.0,0.24847111]
[1761377343582,0.56531098,111660.0,111640.0,0.15756]
[1761377343783,0.48384832,111650.0,111640.0,0.00049026]
[1761377343940,0.48384832,111650.0,111640.0,0.15917026]
[1761377344155,0.51074984,111650.0,111640.0,0.24898927]
[1761377344354,0.48384832,111650.0,111640.0,0.09030927]
[1761377344554,0.48384832,111650.0,111640.0,0.30638927]
[1761377344862,0.57366733,111650.0,111640.0,0.30638927]
[1761377345077,0.57366733,111650.0,111640.0,0.31038927]
[1761377345078,0.17913121,111650.0,111640.0,0.31038927]
[1761377345254,0.48383623,111660.0,111640.0,0.39327428]
[1761377345486,0.48383623,111660.0,111650.0,0.08981901]
[1761377345748,0.78855334,111660.0,111650.0,0.08981901]
[1761377345926,0.48383623,111660.0,111650.0,0.08981901]
[1761377349445,0.78855334,111660.0,111650.0,0.08981901]
[1761377350000,0.78855334,111660.0,111650.0,0.09082934]
[1761377350201,0.48383623,111660.0,111650.0,0.09082934]
[1761377350843,0.17911912,111660.0,111650.0,0.09082934]
[1761377350962,0.48383623,111660.0,111650.0,0.09082934]
[1761377351161,0.30471711,111660.0,111650.0,0.26996055]
[1761377351766,0.17911517,111660.0,111650.0,0.26996055]
[1761377352016,0.48383228,111660.0,111650.0,0.26996055]
[1761377353112,0.48383228,111660.0,111650.0,0.09082934]
[1761377353290,0.48383228,111660.0,111650.0,0.26996055]
[1761377353705,0.48383228,111660.0,111650.0,0.09082934]
[1761377354743,0.17911517,111660.0,111650.0,0.09082934]
[1761377355127,0.17911517,111660.0,111650.0,0.26996055]
[1761377357840,0.18311517,111660.0,111650.0,0.26996055]
[1761377362557,0.18311517,111660.0,111650.0,0.09082934]
[1761377364694,0.18311517,111660.0,111650.0,0.30682934]
[1761377371366,0.18311517,111660.0,111650.0,0.48596055]
[1761377374186,0.18311517,111660.0,111650.0,0.42848055]
[1761377374401,0.18311517,111660.0,111650.0,0.48580055]
[1761377374614,0.004,111660.0,111650.0,0.48580055]
[1761377375024,0.004,111660.0,111650.0,0.79085869]
[1761377376197,0.004,111660.0,111650.0,0.81774847]
[1761377380501,0.1790833,111680.0,111670.0,0.17909913]
[1761377380705,0.1790833,111680.0,111670.0,0.42739814]
[1761377380913,0.1790833,111680.0,111670.0,0.42773486]
[1761377381355,0.49379145,111690.0,111670.0,0.42773486]
[1761377381564,0.49379145,111690.0,111680.0,0.14713901]
[1761377382794,0.49379145,111690.0,111680.0,0.14762927]
[1761377383023,0.49379145,111690.0,111680.0,0.14962927]
[1761377384364,0.0007129,111690.0,111680.0,0.32871236]
[1761377386109,0.17977996,111690.0,111680.0,0.32871236]
[1761377389220,0.0007129,111690.0,111680.0,0.32871236]
[1761377390589,0.0007129,111690.0,111680.0,0.66871236]
[1761377394087,0.0007129,111690.0,111680.0,0.67781513]
[1761377395162,0.0007129,111690.0,111680.0,0.98287327]
[1761377395378,0.0007129,111690.0,111680.0,0.67781513]
[1761377402573,0.30577104,111690.0,111680.0,0.61139236]
[1761377402751,0.30577104,111690.0,111680.0,0.48695236]
[1761377403747,0.30577104,111690.0,111680.0,0.42967236]
[1761377403961,0.4848381,111690.0,111680.0,0.48699236]
[1761377406683,0.0007129,111690.0,111680.0,0.48699236]
[1761377409345,0.0007129,111690.0,111680.0,0.83996434]
[1761377409578,0.0007129,111690.0,111680.0,3.17996434]
[1761377409793,0.0007129,111690.0,111680.0,3.1320505]
[1761377410236,0.0007129,111690.0,111680.0,3.19593562]
[1761377410650,0.0007129,111690.0,111680.0,3.2321179]
[1761377411087,0.0007129,111690.0,111680.0,3.2301179]
[1761377411514,0.0037129,111690.0,111680.0,3.2301179]
[1761377413639,0.0037129,111690.0,111680.0,3.4091179]
[1761377414034,0.0037129,111690.0,111680.0,3.0145179]
[1761377414246,0.0037129,111690.0,111680.0,3.5588179]
[1761377415251,0.0037129,111690.0,111680.0,2.82297748]
[1761377415453,0.0037129,111690.0,111680.0,2.91729236]
[1761377415660,0.0037129,111690.0,111680.0,3.15365236]
[1761377416818,0.0037129,111690.0,111680.0,0.86439823]
[1761377417033,0.0037129,111690.0,111680.0,1.02263823]
[1761377417203,0.0037129,111690.0,111680.0,1.32746919]
[1761377420135,0.0037129,111690.0,111680.0,1.17776919]
[1761377422751,0.0037129,111690.0,111680.0,0.87293823]
[1761377422955,0.0037129,111690.0,111680.0,1.17776919]
[1761377427768,0.0037129,111690.0,111680.0,0.87293823]
[1761377427978,0.30854386,111690.0,111680.0,0.66667236]
[1761377428281,0.48761092,111690.0,111680.0,0.82479236]
[1761377428979,0.30854386,111690.0,111680.0,0.82479236]
[1761377429180,0.0037129,111690.0,111680.0,0.82479236]
[1761377429331,0.48761092,111690.0,111680.0,0.82479236]
[1761377431528,0.48761092,111690.0,111680.0,0.48479236]
[1761377433274,0.48761092,111690.0,111680.0,0.26939236]
[1761377433777,0.48761092,111690.0,111680.0,0.30574927]
[1761377439124,0.48761092,111690.0,111680.0,0.09030927]
[1761377439336,0.48761092,111690.0,111680.0,0.30570927]
[1761377439782,0.0037129,111690.0,111680.0,0.30570927]
[1761377439999,0.0037129,111690.0,111680.0,0.78962332]
[1761377441040,0.18277996,111690.0,111680.0,0.78962332]
[1761377441174,0.0037129,111690.0,111680.0,0.78962332]
[1761377443109,0.18277996,111690.0,111680.0,0.78962332]
[1761377443566,0.18277996,111690.0,111680.0,0.48479236]
[1761377444006,0.18277996,111690.0,111680.0,0.61054023]
[1761377444325,0.18277996,111690.0,111680.0,0.78962332]
[1761377445656,0.18277996,111690.0,111680.0,0.48479236]
[1761377446982,0.18277996,111690.0,111680.0,0.30570927]
[1761377449270,0.48761092,111690.0,111680.0,0.30570927]
[1761377450066,0.48761092,111690.0,111680.0,0.09030927]
[1761377450289,0.48761092,111690.0,111680.0,0.30562927]
[1761377461356,0.48761092,111690.0,111680.0,0.09030927]
[1761377461565,0.48761092,111690.0,111680.0,0.30558927]
[1761377464782,0.18277996,111690.0,111680.0,0.30558927]
[1761377465001,0.48761092,111690.0,111680.0,0.30558927]
[1761377472180,0.79244188,111690.0,111680.0,0.30546927]
[1761377473248,0.79244188,111690.0,111680.0,0.00049026]
[1761377473438,1.09427284,111690.0,111680.0,0.00049026]
[1761377473688,0.80976586,111690.0,111680.0,0.15837026]
[1761377474263,0.79044188,111690.0,111680.0,0.15837026]
[1761377474437,0.78944188,111690.0,111680.0,0.15837026]
[1761377474973,0.87926089,111690.0,111680.0,0.15837026]
[1761377475348,0.17977996,111690.0,111680.0,0.15837026]
[1761377475549,0.48461092,111690.0,111680.0,0.15837026]
[1761377476755,0.48475808,111690.0,111680.0,0.15837026]
[1761377481463,0.48475808,111690.0,111680.0,0.24818927]
[1761377481677,0.17977996,111690.0,111680.0,0.24818927]
[1761377482403,0.48475808,111690.0,111680.0,0.24818927]
[1761377483680,0.48475808,111690.0,111680.0,0.30550927]
[1761377485027,0.57457709,111690.0,111680.0,0.09030927]
[1761377485205,0.57457709,111690.0,111680.0,0.30566927]
[1761377486843,0.57457709,111690.0,111680.0,0.00049026]
[1761377487075,0.57457709,111690.0,111680.0,0.21585026]
[1761377490752,0.87955521,111690.0,111680.0,0.00049026]
[1761377490963,0.87955521,111690.0,111680.0,0.18429026]
[1761377492584,0.26959897,111690.0,111680.0,0.18429026]
[1761377492844,0.48475808,111690.0,111680.0,0.18429026]
[1761377494528,0.7897362,111690.0,111680.0,0.18429026]
[1761377496869,0.7897362,111690.0,111680.0,0.00049026]
[1761377497137,0.7897362,111690.0,111680.0,0.15845026]
[1761377503898,0.80906897,111690.0,111680.0,0.15845026]
[1761377505063,0.89888798,111690.0,111680.0,0.15845026]
[1761377513232,0.87955521,111690.0,111680.0,0.15845026]
[1761377522048,0.57457709,111690.0,111680.0,0.15845026]
[1761377523688,0.66888709,111690.0,111680.0,0.15845026]
[1761377523813,0.17977996,111690.0,111680.0,0.15845026]
[1761377527000,0.17977996,111690.0,111680.0,0.55324739]
[1761377527201,0.17977996,111690.0,111680.0,0.24826927]
[1761377527402,0.17977996,111690.0,111680.0,0.27515823]
[1761377527578,0.0007129,111690.0,111680.0,0.75921944]
[1761377527814,0.0007129,111690.0,111680.0,0.80724531]
[1761377528012,0.0007129,111690.0,111680.0,1.14724531]
[1761377528582,0.0007129,111690.0,111680.0,1.15024531]
[1761377528899,0.0007129,111690.0,111680.0,1.14724531]
[1761377529099,0.0047129,111690.0,111680.0,1.14724531]
[1761377529325,0.0047129,111690.0,111680.0,1.09921944]
[1761377529525,0.0047129,111690.0,111680.0,0.94125944]
[1761377529750,0.0047129,111690.0,111680.0,1.09917944]
[1761377533440,0.0047129,111690.0,111680.0,1.09913944]
[1761377533642,0.0047129,111690.0,111680.0,1.15645944]
[1761377535734,0.0047129,111690.0,111680.0,0.94125944]
[1761377535952,0.0047129,111690.0,111680.0,1.15645944]
[1761377536587,0.18377996,111690.0,111680.0,0.94125944]
[1761377536785,0.18377996,111690.0,111680.0,1.15641944]
[1761377536985,0.18306706,111690.0,111680.0,1.15641944]
[1761377538637,0.18306706,111690.0,111680.0,0.94125944]